[Event "Early-Titled-Tuesday-Blitz-May-28-2024"]
[Site "Chess.com"]
[Date "2024.05.28"]
[Round "5"]
[White "PabloZarnicki"]
[Black "pirulillo"]
[Result "0-1"]
[WhiteElo "2534"]
[BlackElo "2378"]
[TimeControl "180+1"]
[EndTime "8:58:34 PDT"]
[Termination "pirulillo won by checkmate"]

1. e4 {[%clk 0:02:52.9]} 1... c5 {[%clk 0:02:59.4]} 2. Nf3 {[%clk 0:02:50.7]}
2... e6 {[%clk 0:02:57.2]} 3. d3 {[%clk 0:02:47.9]} 3... Nc6 {[%clk 0:02:54.7]}
4. g3 {[%clk 0:02:48]} 4... g6 {[%clk 0:02:52.5]} 5. Bg5 {[%clk 0:02:47.8]} 5...
Qc7 {[%clk 0:02:49.9]} 6. Bg2 {[%clk 0:02:46.4]} 6... Bg7 {[%clk 0:02:49.7]} 7.
c3 {[%clk 0:02:45.5]} 7... h6 {[%clk 0:02:44]} 8. Be3 {[%clk 0:02:44.9]} 8... d6
{[%clk 0:02:43.3]} 9. O-O {[%clk 0:02:44.6]} 9... Nge7 {[%clk 0:02:42.5]} 10. d4
{[%clk 0:02:43.9]} 10... cxd4 {[%clk 0:02:41.2]} 11. cxd4 {[%clk 0:02:44.2]}
11... d5 {[%clk 0:02:41.1]} 12. Nc3 {[%clk 0:02:40.4]} 12... dxe4 {[%clk
0:02:14.7]} 13. Nxe4 {[%clk 0:02:38.5]} 13... Nd5 {[%clk 0:02:14.5]} 14. Rc1
{[%clk 0:02:33]} 14... O-O {[%clk 0:02:10.2]} 15. Qd2 {[%clk 0:02:30.2]} 15...
Kh7 {[%clk 0:02:08.9]} 16. h4 {[%clk 0:02:27.3]} 16... Qa5 {[%clk 0:02:00.2]}
17. Qxa5 {[%clk 0:02:17.8]} 17... Nxa5 {[%clk 0:01:59.9]} 18. Ne5 {[%clk
0:02:18.7]} 18... Bxe5 {[%clk 0:01:51.5]} 19. dxe5 {[%clk 0:02:18.3]} 19... Bd7
{[%clk 0:01:52.1]} 20. Bc5 {[%clk 0:02:10.7]} 20... Rfd8 {[%clk 0:01:32.4]} 21.
Nd6 {[%clk 0:02:06.9]} 21... Kg7 {[%clk 0:01:28]} 22. b4 {[%clk 0:02:03.6]}
22... Nc6 {[%clk 0:01:27.9]} 23. Nxb7 {[%clk 0:02:00.8]} 23... Rdb8 {[%clk
0:01:27.1]} 24. Bxd5 {[%clk 0:01:56.1]} 24... exd5 {[%clk 0:01:25.7]} 25. Nd6
{[%clk 0:01:50.5]} 25... Nxb4 {[%clk 0:01:17]} 26. Bxb4 {[%clk 0:01:35.2]} 26...
Rxb4 {[%clk 0:01:17.9]} 27. Rc7 {[%clk 0:01:35.7]} 27... Be6 {[%clk 0:01:11.6]}
28. f4 {[%clk 0:01:35.4]} 28... Rb2 {[%clk 0:01:01.2]} 29. g4 {[%clk 0:01:35.2]}
29... d4 {[%clk 0:00:57.5]} 30. Rf2 {[%clk 0:01:25.1]} 30... Rab8 {[%clk
0:00:53.3]} 31. Nxf7 {[%clk 0:01:22.6]} 31... Rxf2 {[%clk 0:00:43]} 32. Kxf2
{[%clk 0:01:02.8]} 32... Rb2+ {[%clk 0:00:32.8]} 33. Kg3 {[%clk 0:01:02.4]}
33... Bxf7 {[%clk 0:00:28.2]} 34. e6 {[%clk 0:01:01.8]} 34... d3 {[%clk
0:00:28.5]} 35. Rxf7+ {[%clk 0:01:00.3]} 35... Kg8 {[%clk 0:00:28.8]} 36. Rd7
{[%clk 0:01:00]} 36... d2 {[%clk 0:00:29]} 37. f5 {[%clk 0:00:59.2]} 37... gxf5
{[%clk 0:00:28.4]} 38. gxf5 {[%clk 0:00:59.2]} 38... Rxa2 {[%clk 0:00:27.7]} 39.
f6 {[%clk 0:00:58.9]} 39... Ra6 {[%clk 0:00:20.2]} 40. e7 {[%clk 0:00:51]} 40...
Kf7 {[%clk 0:00:17.4]} 41. Rd8 {[%clk 0:00:46.1]} 41... Re6 {[%clk 0:00:16]} 42.
Rf8+ {[%clk 0:00:30]} 42... Kg6 {[%clk 0:00:14.8]} 43. h5+ {[%clk 0:00:30]}
43... Kxh5 {[%clk 0:00:10.5]} 44. Rd8 {[%clk 0:00:28.9]} 44... Kg6 {[%clk
0:00:10.3]} 45. Rd6 {[%clk 0:00:28.5]} 45... d1=Q {[%clk 0:00:06.9]} 46. Rxd1
{[%clk 0:00:26.3]} 46... Kxf6 {[%clk 0:00:06.7]} 47. Rh1 {[%clk 0:00:22.8]}
47... Kxe7 {[%clk 0:00:06.5]} 48. Kf4 {[%clk 0:00:23]} 48... Kd7 {[%clk
0:00:05.8]} 49. Kf5 {[%clk 0:00:22.9]} 49... Rb6 {[%clk 0:00:06]} 50. Ra1 {[%clk
0:00:21.9]} 50... a6 {[%clk 0:00:03.5]} 51. Ke5 {[%clk 0:00:22.8]} 51... Kc7
{[%clk 0:00:03.8]} 52. Rc1+ {[%clk 0:00:22.8]} 52... Kb7 {[%clk 0:00:03.7]} 53.
Rc2 {[%clk 0:00:23.7]} 53... a5 {[%clk 0:00:03.9]} 54. Kd5 {[%clk 0:00:23.9]}
54... Ka6 {[%clk 0:00:04.8]} 55. Kc5 {[%clk 0:00:23.7]} 55... Rb5+ {[%clk
0:00:04.4]} 56. Kc6 {[%clk 0:00:23.9]} 56... Rb6+ {[%clk 0:00:04.7]} 57. Kc7
{[%clk 0:00:24.4]} 57... h5 {[%clk 0:00:05.1]} 58. Rc5 {[%clk 0:00:23.3]} 58...
a4 {[%clk 0:00:05.1]} 59. Rc4 {[%clk 0:00:23.2]} 59... Ka5 {[%clk 0:00:04.6]}
60. Rc5+ {[%clk 0:00:23.4]} 60... Rb5 {[%clk 0:00:05.3]} 61. Rc6 {[%clk
0:00:24]} 61... a3 {[%clk 0:00:05.3]} 62. Rc2 {[%clk 0:00:24.2]} 62... Kb4
{[%clk 0:00:05.6]} 63. Kc6 {[%clk 0:00:24]} 63... Rg5 {[%clk 0:00:05.2]} 64. Rc1
{[%clk 0:00:23]} 64... Kb3 {[%clk 0:00:05.4]} 65. Rb1+ {[%clk 0:00:23.1]} 65...
Ka2 {[%clk 0:00:05.7]} 66. Rd1 {[%clk 0:00:23.7]} 66... Kb2 {[%clk 0:00:03.4]}
67. Rd2+ {[%clk 0:00:24.1]} 67... Ka1 {[%clk 0:00:03.4]} 68. Rd1+ {[%clk
0:00:24.5]} 68... Ka2 {[%clk 0:00:03.8]} 69. Rd2+ {[%clk 0:00:25.4]} 69... Kb3
{[%clk 0:00:04.1]} 70. Rd3+ {[%clk 0:00:25.6]} 70... Kb2 {[%clk 0:00:04.5]} 71.
Rd2+ {[%clk 0:00:25.9]} 71... Kc3 {[%clk 0:00:04.5]} 72. Ra2 {[%clk 0:00:24.1]}
72... Rg6+ {[%clk 0:00:05.4]} 73. Kd5 {[%clk 0:00:24]} 73... Kb3 {[%clk
0:00:06.3]} 74. Rg2 {[%clk 0:00:24.1]} 74... Rh6 {[%clk 0:00:07.2]} 75. Rg3+
{[%clk 0:00:24.2]} 75... Kb4 {[%clk 0:00:07.5]} 76. Rg2 {[%clk 0:00:24]} 76...
h4 {[%clk 0:00:07.8]} 77. Rh2 {[%clk 0:00:24.2]} 77... h3 {[%clk 0:00:08.1]} 78.
Kd4 {[%clk 0:00:25.1]} 78... a2 {[%clk 0:00:08.5]} 79. Rxa2 {[%clk 0:00:24.4]}
79... h2 {[%clk 0:00:08.6]} 80. Rb2+ {[%clk 0:00:25.3]} 80... Ka3 {[%clk
0:00:09]} 81. Rb8 {[%clk 0:00:22.7]} 81... Rh4+ {[%clk 0:00:09]} 82. Kd3 {[%clk
0:00:23.6]} 82... h1=Q {[%clk 0:00:08.3]} 83. Kc3 {[%clk 0:00:23.8]} 83... Qc1+
{[%clk 0:00:08]} 84. Kd3 {[%clk 0:00:23.9]} 84... Rh3+ {[%clk 0:00:07.9]} 85.
Ke2 {[%clk 0:00:24.3]} 85... Qc2+ {[%clk 0:00:07.6]} 86. Kf1 {[%clk 0:00:24.3]}
86... Rh1# {[%clk 0:00:07.5]} 0-1

[Event "Early-Titled-Tuesday-Blitz-May-28-2024"]
[Site "Chess.com"]
[Date "2024.05.28"]
[Round "5"]
[White "Sippp"]
[Black "edgarhay012"]
[Result "1/2-1/2"]
[WhiteElo "2799"]
[BlackElo "2619"]
[TimeControl "180+1"]
[EndTime "8:59:17 PDT"]
[Termination "Game drawn - insufficient material"]

1. e4 {[%clk 0:02:59.9]} 1... c5 {[%clk 0:02:59.2]} 2. Nf3 {[%clk 0:03:00.1]}
2... e6 {[%clk 0:02:59.7]} 3. d4 {[%clk 0:02:58.5]} 3... cxd4 {[%clk 0:03:00.6]}
4. Nxd4 {[%clk 0:02:59.4]} 4... Nf6 {[%clk 0:03:01.1]} 5. Nc3 {[%clk 0:02:59.3]}
5... Nc6 {[%clk 0:03:01.5]} 6. Be2 {[%clk 0:02:48.8]} 6... Be7 {[%clk 0:02:56]}
7. O-O {[%clk 0:02:48]} 7... O-O {[%clk 0:02:55.8]} 8. Nxc6 {[%clk 0:02:43.6]}
8... bxc6 {[%clk 0:02:56.7]} 9. e5 {[%clk 0:02:43.2]} 9... Nd5 {[%clk
0:02:56.9]} 10. Ne4 {[%clk 0:02:43]} 10... f5 {[%clk 0:02:50.7]} 11. Nd6 {[%clk
0:02:38.5]} 11... Bxd6 {[%clk 0:02:39.4]} 12. exd6 {[%clk 0:02:39.4]} 12... Nf6
{[%clk 0:02:30.5]} 13. Bf4 {[%clk 0:02:34.8]} 13... Rb8 {[%clk 0:02:27.2]} 14.
b3 {[%clk 0:02:33.4]} 14... c5 {[%clk 0:02:24]} 15. c4 {[%clk 0:02:28.6]} 15...
Bb7 {[%clk 0:02:22.9]} 16. Be5 {[%clk 0:02:18.7]} 16... Qe8 {[%clk 0:02:16.8]}
17. Qd2 {[%clk 0:02:13.1]} 17... Qg6 {[%clk 0:01:50.2]} 18. f3 {[%clk
0:02:12.2]} 18... a6 {[%clk 0:01:32.3]} 19. Qe3 {[%clk 0:02:07.6]} 19... Rfc8
{[%clk 0:01:30.6]} 20. Rad1 {[%clk 0:02:06.1]} 20... Qf7 {[%clk 0:01:22.7]} 21.
Bd3 {[%clk 0:02:02.4]} 21... a5 {[%clk 0:01:15.8]} 22. a4 {[%clk 0:01:58.9]}
22... Ra8 {[%clk 0:00:57.2]} 23. Bc2 {[%clk 0:01:58.3]} 23... Ra6 {[%clk
0:00:52]} 24. Rf2 {[%clk 0:01:47.8]} 24... Qh5 {[%clk 0:00:47.7]} 25. Rdd2
{[%clk 0:01:34.1]} 25... h6 {[%clk 0:00:37.6]} 26. Kf1 {[%clk 0:01:25.6]} 26...
Rb6 {[%clk 0:00:28.4]} 27. h3 {[%clk 0:01:13.8]} 27... Qh4 {[%clk 0:00:21]} 28.
Bc3 {[%clk 0:00:50.5]} 28... Ra6 {[%clk 0:00:19.7]} 29. Qe5 {[%clk 0:00:48.8]}
29... Qg5 {[%clk 0:00:15.2]} 30. Ke1 {[%clk 0:00:40.8]} 30... Qh4 {[%clk
0:00:06.5]} 31. Kd1 {[%clk 0:00:39.7]} 31... Ba8 {[%clk 0:00:07.1]} 32. Kc1
{[%clk 0:00:38.9]} 32... Qg5 {[%clk 0:00:06.3]} 33. Kb2 {[%clk 0:00:33.1]} 33...
Qh4 {[%clk 0:00:06.6]} 34. Ka3 {[%clk 0:00:27.4]} 34... Rb6 {[%clk 0:00:03.1]}
35. Bxa5 {[%clk 0:00:24.6]} 35... Ra6 {[%clk 0:00:03.7]} 36. Bc3 {[%clk
0:00:24.8]} 36... Bc6 {[%clk 0:00:04.4]} 37. g4 {[%clk 0:00:20.7]} 37... Qxh3
{[%clk 0:00:02.5]} 38. gxf5 {[%clk 0:00:19.7]} 38... Rca8 {[%clk 0:00:02.5]} 39.
fxe6 {[%clk 0:00:16.7]} 39... Qxe6 {[%clk 0:00:03.4]} 40. Qxe6+ {[%clk
0:00:16.3]} 40... dxe6 {[%clk 0:00:04.3]} 41. Rfe2 {[%clk 0:00:13.4]} 41... Kf7
{[%clk 0:00:03.7]} 42. f4 {[%clk 0:00:12.5]} 42... Ne8 {[%clk 0:00:03.3]} 43.
Re5 {[%clk 0:00:12.2]} 43... Bd7 {[%clk 0:00:02.9]} 44. Rxc5 {[%clk 0:00:11.9]}
44... Rxd6 {[%clk 0:00:03.1]} 45. Rg2 {[%clk 0:00:11.5]} 45... Nf6 {[%clk
0:00:02.8]} 46. Rc7 {[%clk 0:00:10.3]} 46... Rc8 {[%clk 0:00:02.4]} 47. Rxc8
{[%clk 0:00:09.1]} 47... Bxc8 {[%clk 0:00:03.3]} 48. Be5 {[%clk 0:00:09.5]}
48... Rd8 {[%clk 0:00:02.3]} 49. a5 {[%clk 0:00:09.8]} 49... Bb7 {[%clk
0:00:02.8]} 50. Re2 {[%clk 0:00:09.1]} 50... Ng4 {[%clk 0:00:02.1]} 51. b4
{[%clk 0:00:08.2]} 51... h5 {[%clk 0:00:02.5]} 52. b5 {[%clk 0:00:07.6]} 52...
h4 {[%clk 0:00:03]} 53. c5 {[%clk 0:00:07.1]} 53... Bf3 {[%clk 0:00:03.2]} 54.
Re1 {[%clk 0:00:07.2]} 54... h3 {[%clk 0:00:03.8]} 55. c6 {[%clk 0:00:07.1]}
55... h2 {[%clk 0:00:04.1]} 56. a6 {[%clk 0:00:06.9]} 56... h1=Q {[%clk
0:00:03.8]} 57. Rxh1 {[%clk 0:00:07.1]} 57... Bxh1 {[%clk 0:00:04.7]} 58. Kb4
{[%clk 0:00:06.2]} 58... Ke7 {[%clk 0:00:04]} 59. Kc5 {[%clk 0:00:06.1]} 59...
Ne3 {[%clk 0:00:03.6]} 60. Bb3 {[%clk 0:00:05.6]} 60... Nd5 {[%clk 0:00:03.5]}
61. a7 {[%clk 0:00:04.9]} 61... Ra8 {[%clk 0:00:03.2]} 62. b6 {[%clk 0:00:05.2]}
62... Nxb6 {[%clk 0:00:03.3]} 63. Kxb6 {[%clk 0:00:06.1]} 63... Bxc6 {[%clk
0:00:03.9]} 64. Bb8 {[%clk 0:00:05.7]} 64... Bf3 {[%clk 0:00:02.4]} 65. Kc5
{[%clk 0:00:06]} 65... g6 {[%clk 0:00:02.8]} 66. Kd4 {[%clk 0:00:05.9]} 66...
Kf7 {[%clk 0:00:03.3]} 67. Ke5 {[%clk 0:00:06.2]} 67... Bg4 {[%clk 0:00:01.9]}
68. Bc2 {[%clk 0:00:06.2]} 68... Bf5 {[%clk 0:00:02.4]} 69. Bd1 {[%clk 0:00:06]}
69... g5 {[%clk 0:00:02.8]} 70. fxg5 {[%clk 0:00:05.9]} 70... Kg6 {[%clk
0:00:03.5]} 71. Kf4 {[%clk 0:00:05]} 71... e5+ {[%clk 0:00:04.4]} 72. Kxe5
{[%clk 0:00:05.5]} 72... Kxg5 {[%clk 0:00:04.8]} 73. Bf3 {[%clk 0:00:06]} 73...
Rxa7 {[%clk 0:00:04.7]} 74. Bxa7 {[%clk 0:00:06.9]} 74... Bg4 {[%clk 0:00:04.9]}
75. Be3+ {[%clk 0:00:07.5]} 75... Kh4 {[%clk 0:00:05.3]} 76. Be4 {[%clk
0:00:08.3]} 76... Kg3 {[%clk 0:00:05.8]} 77. Bd2 {[%clk 0:00:07.9]} 77... Bf3
{[%clk 0:00:06.2]} 78. Be1+ {[%clk 0:00:08.3]} 78... Kg2 {[%clk 0:00:06.3]} 79.
Bd3 {[%clk 0:00:08.6]} 79... Kh3 {[%clk 0:00:04.9]} 80. Kf4 {[%clk 0:00:08.9]}
80... Bb7 {[%clk 0:00:04.7]} 81. Bf1+ {[%clk 0:00:08.3]} 81... Kh2 {[%clk
0:00:05.2]} 82. Bf2 {[%clk 0:00:08.3]} 82... Kh1 {[%clk 0:00:05.5]} 83. Bg3
{[%clk 0:00:08.1]} 83... Bg2 {[%clk 0:00:05.9]} 84. Bd3 {[%clk 0:00:08.3]} 84...
Ba8 {[%clk 0:00:06.3]} 85. Bh4 {[%clk 0:00:08.9]} 85... Bb7 {[%clk 0:00:06.7]}
86. Kg3 {[%clk 0:00:09.1]} 86... Ba8 {[%clk 0:00:06.7]} 87. Bg5 {[%clk
0:00:09.6]} 87... Bb7 {[%clk 0:00:07.3]} 88. Be3 {[%clk 0:00:10.1]} 88... Ba8
{[%clk 0:00:07.9]} 89. Kh3 {[%clk 0:00:10.5]} 89... Bb7 {[%clk 0:00:08.2]} 90.
Kg3 {[%clk 0:00:11.2]} 90... Ba8 {[%clk 0:00:08.8]} 91. Kf4 {[%clk 0:00:10.8]}
91... Bb7 {[%clk 0:00:09.3]} 92. Bf2 {[%clk 0:00:11.1]} 92... Ba8 {[%clk
0:00:09.6]} 93. Ke3 {[%clk 0:00:12]} 93... Bb7 {[%clk 0:00:10]} 94. Bh4 {[%clk
0:00:12.9]} 94... Ba8 {[%clk 0:00:10.3]} 95. Kf2 {[%clk 0:00:13.8]} 95... Bb7
{[%clk 0:00:10.5]} 96. Bf1 {[%clk 0:00:13]} 96... Ba8 {[%clk 0:00:10.8]} 97. Bh3
{[%clk 0:00:12.8]} 97... Bb7 {[%clk 0:00:11.1]} 98. Kg3 {[%clk 0:00:12.9]} 98...
Ba8 {[%clk 0:00:11.4]} 99. Bg5 {[%clk 0:00:13.2]} 99... Bc6 {[%clk 0:00:11.4]}
100. Bg4 {[%clk 0:00:13.9]} 100... Ba8 {[%clk 0:00:11.6]} 101. Bf3+ {[%clk
0:00:14.6]} 101... Bxf3 {[%clk 0:00:11.7]} 1/2-1/2

[Event "Early-Titled-Tuesday-Blitz-May-28-2024"]
[Site "Chess.com"]
[Date "2024.05.28"]
[Round "5"]
[White "kuchma777"]
[Black "bubeliang"]
[Result "0-1"]
[WhiteElo "2502"]
[BlackElo "2788"]
[TimeControl "180+1"]
[EndTime "8:59:47 PDT"]
[Termination "bubeliang won on time"]

1. e4 {[%clk 0:02:57.4]} 1... c6 {[%clk 0:02:58.5]} 2. d4 {[%clk 0:02:51.9]}
2... d5 {[%clk 0:02:59.4]} 3. e5 {[%clk 0:02:52.3]} 3... c5 {[%clk 0:02:59.4]}
4. dxc5 {[%clk 0:02:51.1]} 4... e6 {[%clk 0:02:58.4]} 5. a3 {[%clk 0:02:51.7]}
5... Bxc5 {[%clk 0:02:57.9]} 6. Nf3 {[%clk 0:02:52.3]} 6... Ne7 {[%clk
0:02:57.7]} 7. Bd3 {[%clk 0:02:52.2]} 7... Ng6 {[%clk 0:02:56.8]} 8. O-O {[%clk
0:02:52.2]} 8... Nc6 {[%clk 0:02:56.7]} 9. Re1 {[%clk 0:02:47.7]} 9... O-O
{[%clk 0:02:52.8]} 10. b4 {[%clk 0:02:46]} 10... Bb6 {[%clk 0:02:48.9]} 11. Bb2
{[%clk 0:02:46]} 11... Bc7 {[%clk 0:02:42.7]} 12. g3 {[%clk 0:02:44.6]} 12... f6
{[%clk 0:02:26.4]} 13. exf6 {[%clk 0:02:41.6]} 13... gxf6 {[%clk 0:02:27.3]} 14.
c4 {[%clk 0:02:40.8]} 14... dxc4 {[%clk 0:02:18.7]} 15. Bxc4 {[%clk 0:02:40]}
15... Qxd1 {[%clk 0:02:19.6]} 16. Rxd1 {[%clk 0:02:40.1]} 16... Nce5 {[%clk
0:02:11.4]} 17. Nxe5 {[%clk 0:02:38.2]} 17... Nxe5 {[%clk 0:02:10.6]} 18. Bb3
{[%clk 0:02:35.8]} 18... Kg7 {[%clk 0:01:53.2]} 19. Nc3 {[%clk 0:02:35.3]} 19...
Bd7 {[%clk 0:01:28.2]} 20. f4 {[%clk 0:01:13]} 20... Bb6+ {[%clk 0:01:00.8]} 21.
Kf1 {[%clk 0:01:04]} 21... Bc6 {[%clk 0:01:01.1]} 22. b5 {[%clk 0:00:36.1]}
22... Bf3 {[%clk 0:00:51.2]} 23. fxe5 {[%clk 0:00:28.1]} 23... Bxd1 {[%clk
0:00:35.6]} 24. Rxd1 {[%clk 0:00:26.9]} 24... fxe5+ {[%clk 0:00:36.5]} 25. Ke1
{[%clk 0:00:27.2]} 25... Rf2 {[%clk 0:00:33.8]} 26. Ne2 {[%clk 0:00:23.9]} 26...
Rxh2 {[%clk 0:00:12.1]} 27. Bxe5+ {[%clk 0:00:23.8]} 27... Kh6 {[%clk
0:00:07.9]} 28. Bf4+ {[%clk 0:00:17]} 28... Kg7 {[%clk 0:00:07.8]} 29. Rd7+
{[%clk 0:00:16]} 29... Kf6 {[%clk 0:00:05.9]} 30. Nc3 {[%clk 0:00:10.7]} 30...
Ba5 {[%clk 0:00:05.5]} 31. Bd2 {[%clk 0:00:07.7]} 31... Rh1+ {[%clk 0:00:03.8]}
32. Ke2 {[%clk 0:00:08]} 32... Rh2+ {[%clk 0:00:04]} 33. Kd3 {[%clk 0:00:08.6]}
33... Kg6 {[%clk 0:00:04.7]} 34. Bxe6 {[%clk 0:00:06.4]} 34... Rc8 {[%clk
0:00:03.4]} 35. Bd5 {[%clk 0:00:03.1]} 35... Rxd2+ {[%clk 0:00:03.3]} 36. Kxd2
{[%clk 0:00:03.1]} 36... Rxc3 {[%clk 0:00:04]} 37. Be4+ {[%clk 0:00:02.5]} 37...
Kf6 {[%clk 0:00:03.9]} 38. Ke2 {[%clk 0:00:02.7]} 38... Rxg3 {[%clk 0:00:03.7]}
39. Rxb7 {[%clk 0:00:02.4]} 39... Bb6 {[%clk 0:00:03.6]} 40. Bf3 {[%clk
0:00:01.8]} 40... Rg5 {[%clk 0:00:02.9]} 41. Rxh7 {[%clk 0:00:01.8]} 41... Rxb5
{[%clk 0:00:02.7]} 42. Rh6+ {[%clk 0:00:02.5]} 42... Kg7 {[%clk 0:00:02.1]} 43.
Rh5 {[%clk 0:00:02.1]} 43... Rb2+ {[%clk 0:00:02.7]} 44. Ke1 {[%clk 0:00:01.7]}
44... Rb3 {[%clk 0:00:03.6]} 45. Be2 {[%clk 0:00:01.7]} 45... Rxa3 {[%clk
0:00:04.1]} 46. Rb5 {[%clk 0:00:02]} 46... Kf6 {[%clk 0:00:04.5]} 47. Kd2 {[%clk
0:00:02.2]} 47... Ke7 {[%clk 0:00:05.2]} 48. Bd3 {[%clk 0:00:02.7]} 48... Ra2+
{[%clk 0:00:05.4]} 49. Kc3 {[%clk 0:00:02.8]} 49... Rh2 {[%clk 0:00:06.3]} 50.
Rg5 {[%clk 0:00:02.2]} 50... Kd6 {[%clk 0:00:06.5]} 51. Rg6+ {[%clk 0:00:02.6]}
51... Kc7 {[%clk 0:00:06.9]} 52. Rg7+ {[%clk 0:00:03.1]} 52... Kd6 {[%clk
0:00:07.5]} 53. Rg6+ {[%clk 0:00:03.7]} 53... Ke5 {[%clk 0:00:08.1]} 54. Rg5+
{[%clk 0:00:04.2]} 54... Kf4 {[%clk 0:00:08.6]} 55. Rf5+ {[%clk 0:00:04.8]}
55... Kg4 {[%clk 0:00:09.2]} 56. Rf8 {[%clk 0:00:04]} 56... Ra2 {[%clk
0:00:07.5]} 57. Rg8+ {[%clk 0:00:02.8]} 57... Kh4 {[%clk 0:00:07.8]} 58. Rh8+
{[%clk 0:00:03.2]} 58... Kg5 {[%clk 0:00:08.3]} 59. Rg8+ {[%clk 0:00:03.8]}
59... Kf6 {[%clk 0:00:08.8]} 60. Rf8+ {[%clk 0:00:04.4]} 60... Ke7 {[%clk
0:00:09.3]} 61. Rf4 {[%clk 0:00:04.6]} 61... Ra1 {[%clk 0:00:09]} 62. Re4+
{[%clk 0:00:04.7]} 62... Kd6 {[%clk 0:00:09.6]} 63. Bc2 {[%clk 0:00:05]} 63...
Ra3+ {[%clk 0:00:09.7]} 64. Kb2 {[%clk 0:00:05.2]} 64... Rh3 {[%clk 0:00:09.2]}
65. Rg4 {[%clk 0:00:05.3]} 65... Re3 {[%clk 0:00:09.2]} 66. Rg6+ {[%clk
0:00:05.2]} 66... Kc7 {[%clk 0:00:09.2]} 67. Rg7+ {[%clk 0:00:05.5]} 67... Kb8
{[%clk 0:00:09.6]} 68. Rg8+ {[%clk 0:00:05.4]} 68... Kb7 {[%clk 0:00:10.1]} 69.
Rg7+ {[%clk 0:00:05.9]} 69... Ka6 {[%clk 0:00:10.7]} 70. Rg6 {[%clk 0:00:05.8]}
70... Kb5 {[%clk 0:00:10.3]} 71. Rg5+ {[%clk 0:00:05.9]} 71... Bc5 {[%clk
0:00:10.9]} 72. Kc1 {[%clk 0:00:02]} 72... a5 {[%clk 0:00:11.1]} 73. Kd2 {[%clk
0:00:02.5]} 73... Re7 {[%clk 0:00:10.6]} 74. Bd3+ {[%clk 0:00:02.9]} 74... Kb4
{[%clk 0:00:10.4]} 75. Rg4+ {[%clk 0:00:03.1]} 75... Ka3 {[%clk 0:00:10.8]} 76.
Kc2 {[%clk 0:00:02.3]} 76... Bb4 {[%clk 0:00:11.4]} 77. Rg1 {[%clk 0:00:01.2]}
77... Rc7+ {[%clk 0:00:11.7]} 78. Kd1 {[%clk 0:00:01.4]} 78... Rc3 {[%clk
0:00:12.2]} 79. Ke2 {[%clk 0:00:02]} 79... Kb2 {[%clk 0:00:12.7]} 80. Rb1+
{[%clk 0:00:02.5]} 80... Ka2 {[%clk 0:00:13.4]} 81. Rd1 {[%clk 0:00:02.6]} 81...
Rc7 {[%clk 0:00:12.4]} 82. Ke3 {[%clk 0:00:03]} 82... Bc5+ {[%clk 0:00:12]} 83.
Ke4 {[%clk 0:00:03.1]} 83... Bb4 {[%clk 0:00:12.5]} 84. Kd5 {[%clk 0:00:02.9]}
84... Kb2 {[%clk 0:00:13.1]} 85. Ke4 {[%clk 0:00:01.9]} 85... Rg7 {[%clk
0:00:13.2]} 86. Rb1+ {[%clk 0:00:01.9]} 86... Kc3 {[%clk 0:00:13.9]} 87. Rc1+
{[%clk 0:00:02.3]} 87... Kb3 {[%clk 0:00:14.4]} 88. Bc4+ {[%clk 0:00:02]} 88...
Kb2 {[%clk 0:00:14.1]} 89. Rf1 {[%clk 0:00:02.5]} 89... Re7+ {[%clk 0:00:12.8]}
90. Kd5 {[%clk 0:00:02.8]} 90... Rd7+ {[%clk 0:00:13.3]} 91. Kc6 {[%clk
0:00:03.3]} 91... Rh7 {[%clk 0:00:11.7]} 92. Kb5 {[%clk 0:00:03.7]} 92... Rh3
{[%clk 0:00:10.1]} 93. Rf2+ {[%clk 0:00:03.7]} 93... Kc3 {[%clk 0:00:09.7]} 94.
Bd5 {[%clk 0:00:03.2]} 94... Rh5 {[%clk 0:00:09.1]} 95. Kc6 {[%clk 0:00:03.5]}
95... Rg5 {[%clk 0:00:08.9]} 96. Rf3+ {[%clk 0:00:03.5]} 96... Kd4 {[%clk
0:00:08.4]} 97. Rf4+ {[%clk 0:00:04.1]} 97... Ke3 {[%clk 0:00:06.5]} 98. Re4+
{[%clk 0:00:04.5]} 98... Kd3 {[%clk 0:00:07.2]} 99. Re6 {[%clk 0:00:03.1]} 99...
a4 {[%clk 0:00:06]} 100. Re8 {[%clk 0:00:02.3]} 100... a3 {[%clk 0:00:06.3]}
101. Ra8 {[%clk 0:00:02.1]} 101... Kc3 {[%clk 0:00:06.9]} 102. Be6 {[%clk
0:00:01.5]} 102... Rc5+ {[%clk 0:00:06.9]} 103. Kd7 {[%clk 0:00:02]} 103... Re5
{[%clk 0:00:07.3]} 104. Bg8 {[%clk 0:00:01.2]} 104... Kb2 {[%clk 0:00:07.5]}
105. Be6 {[%clk 0:00:01.3]} 105... Re4 {[%clk 0:00:07.5]} 106. Ra7 {[%clk
0:00:01.8]} 106... Rd4+ {[%clk 0:00:07.9]} 107. Kc8 {[%clk 0:00:01.5]} 107...
Rd6 {[%clk 0:00:07.8]} 108. Bf7 {[%clk 0:00:01]} 108... Rc6+ {[%clk 0:00:08]}
109. Kd7 {[%clk 0:00:01.4]} 109... Rh6 {[%clk 0:00:08.5]} 110. Ke8 {[%clk
0:00:01.9]} 110... Kc3 {[%clk 0:00:08.4]} 111. Kd7 {[%clk 0:00:02.4]} 111... Rf6
{[%clk 0:00:08]} 112. Ke8 {[%clk 0:00:02.8]} 112... Rf1 {[%clk 0:00:07.5]} 113.
Kd7 {[%clk 0:00:03.1]} 113... Re1 {[%clk 0:00:07.3]} 114. Be6 {[%clk 0:00:03.1]}
114... Rd1+ {[%clk 0:00:07.2]} 115. Ke8 {[%clk 0:00:03.3]} 115... Rf1 {[%clk
0:00:06.7]} 116. Kd7 {[%clk 0:00:03]} 116... Rh1 {[%clk 0:00:06.8]} 117. Ke8
{[%clk 0:00:02.8]} 117... Rh8+ {[%clk 0:00:07]} 118. Kd7 {[%clk 0:00:01]} 118...
Rh7+ {[%clk 0:00:06.9]} 119. Kc6 {[%clk 0:00:01.6]} 119... Rxa7 {[%clk
0:00:07.4]} 0-1

[Event "Early-Titled-Tuesday-Blitz-May-28-2024"]
[Site "Chess.com"]
[Date "2024.05.28"]
[Round "6"]
[White "Flawless_Fighter"]
[Black "maximnovik"]
[Result "0-1"]
[WhiteElo "2691"]
[BlackElo "2546"]
[TimeControl "180+1"]
[EndTime "9:01:50 PDT"]
[Termination "maximnovik won by resignation"]

1. Nf3 {[%clk 0:03:00.9]} 1... c5 {[%clk 0:02:59.2]} 2. g3 {[%clk 0:02:56.1]}
2... b6 {[%clk 0:02:58.2]} 3. Bg2 {[%clk 0:02:55.9]} 3... Bb7 {[%clk 0:02:58.8]}
4. O-O {[%clk 0:02:55.3]} 4... Nf6 {[%clk 0:02:57.7]} 5. b3 {[%clk 0:02:54.2]}
5... g6 {[%clk 0:02:57.3]} 6. Bb2 {[%clk 0:02:54.8]} 6... Bg7 {[%clk 0:02:57.8]}
7. d3 {[%clk 0:02:55.4]} 7... d5 {[%clk 0:02:53.7]} 8. Nbd2 {[%clk 0:02:54.8]}
8... O-O {[%clk 0:02:53.3]} 9. Qe1 {[%clk 0:02:54.7]} 9... Nbd7 {[%clk
0:02:51.6]} 10. e4 {[%clk 0:02:54.3]} 10... d4 {[%clk 0:02:51]} 11. Qe2 {[%clk
0:02:53.4]} 11... e5 {[%clk 0:02:50.6]} 12. a4 {[%clk 0:02:51.3]} 12... a6
{[%clk 0:02:50.5]} 13. h3 {[%clk 0:02:48.5]} 13... Qc7 {[%clk 0:02:49]} 14. Nh4
{[%clk 0:02:44.5]} 14... b5 {[%clk 0:02:48.2]} 15. f4 {[%clk 0:02:41.1]} 15...
Nh5 {[%clk 0:02:47.9]} 16. Qf2 {[%clk 0:02:37.8]} 16... Bh6 {[%clk 0:02:39.9]}
17. f5 {[%clk 0:02:33.8]} 17... Be3 {[%clk 0:02:39.1]} 0-1